{"text_format":"1","workbook":"xlsx","n_sheets":3,"sheets":["Instrucciones","Reformulación Presupuesto Bc","Resumen Presupuesto"],"not_rendered":{"charts":0,"images":5,"macros":1,"external_links":0,"defined_names":8,"comments":2,"pivot_tables":0},"unopened":[],"bounds":{"document_bytes":16777216,"sheet_cells":100000,"rows_first":2000,"rows_last":500,"rows_between":2000,"halvings":0,"cell_chars":16384,"cell_head_chars":4096},"cells_cut":0,"cells_raw":0,"read":"whole","date_system":"1900"}

{"sheet":"Instrucciones","index":0,"n_rows":25,"n_cols":10,"rows_kept":25,"cut":false,"hidden":false,"merged":[[1,9,1,11],[2,2,2,17],[5,2,5,17],[23,1,23,16],[24,1,24,16],[3,9,3,10]]}
[]
[null,null,null,null,null,null,null,null,null,"Doc_básico3_presup_reformulado_Bc INSTRUCCIONES"]
[null,null,"SUBVENCIONES DEL AYUNTAMIENTO DE BARCELONA POR EL FORTALECIMIENTO DE LA ECONOMÍA SOCIAL Y SOLIDARIA Y POR LA INTERCOOPERACIÓN EN LA ESTRATEGIA #ESSBCN2030 - FORTALEZCAMOS LA ESS 2023"]
[null,null,null,null,null,null,null,null,null,"FORTALECEMOS LA ESS 2023"]
[]
[null,null,"Aspectos relevantes relacionados con la reformulación"]
[]
[]
[]
[]
[null,"1. Rellenar la pestaña \"Reformulación Presupuesto\" con los datos económicos del proyecto:"]
[null,"1.1  Rellenar los cuadros DATOS BÁSICOS-PREVISIÓN DE GASTOS DEL PROYECTO SUBVENCIONABLE INICIAL, con los datos económicos de la propuesta inicial con subvención otorgada."]
[null,"1.2  Rellenar r los cuadros DATOS BÁSICOS-PREVISIÓN DE GASTOS DEL PROYECTO REFORMULADO, con los datos económicos de la propuesta de reformulación."]
[null,"2. Revisar y llenar la pestaña \"Resumen Presupuesto\" con los datos económicos del proyecto:"]
[null,"3. Imprimir las hojas de las 2 pestañas (Reformulación presupuesto y Resumen Presupuesto). En formato pdf."]
[]
[]
[]
[null,"Pulsa el icono para generar un documento PDF del libro"]
[]
[]
[]
[]
[null,"4. Si la solicitud se presentó por vía telemática, es necesario que registre la documentación, telemáticamente, como trámite específico, dentro de la convocatoria específica como anexión de documentos adicionales y utilice el número de trámite que el sistema de registro le dio en el momento de la presentación de la solicitud de la subvención."]
[null,"5. En caso de que registre la documentación telemáticamente, como instancia genérica, mediante certificado digital, le recomendamos que avise a la dirección de correo electrónico subvencions_ec_solidaria@bcn.cat,para poder realizar un seguimiento, así como también en los casos que presente la documentación a través de una Oficina de Atención Ciudadana del Ayuntamiento, si no ha podido obtener el certificado digital (los requisitos para obtenerlo los encontrará en la Oficina Virtual de Trámites de la Sede Electrónica:https://seuelectronica.ajuntament.barcelona.cat/oficinavirtual/)."]

{"sheet":"Reformulación Presupuesto Bc","index":1,"n_rows":147,"n_cols":10,"rows_kept":147,"cut":false,"hidden":false,"merged":[[143,0,143,3],[144,0,144,3],[145,0,145,3],[146,0,146,3],[138,0,138,3],[139,0,139,3],[140,0,140,3],[141,0,141,3],[142,0,142,3],[1,1,1,8],[18,0,18,3],[10,6,10,7],[18,6,18,8],[6,2,6,5],[126,0,126,3],[127,0,127,3],[137,0,137,2],[3,0,4,8],[20,0,20,3],[128,0,128,3],[129,0,129,3],[130,0,130,3],[131,0,131,3],[132,0,132,3],[133,0,133,3],[134,0,134,3],[135,0,135,3],[136,0,136,3]]}
[]
[null,"Reformulación presupuesto Modalidad Bc"]
[]
["CONVOCATORIA 2023 DEL PROGRAMA DE SUBVENCIONES DEL AYUNTAMIENTO DE BARCELONA PARA EL FORTALECIMIENTO DE LA ECONOMÍA SOCIAL Y SOLIDARIA Y PARA LA INTERCOOPERACIÓN EN LA ESTRATEGIA #ESSBCN2030 -ENFORTIM L'ESS 2023"]
[]
[]
[]
["DATOS BÁSICOS"]
["Nombre de la persona jurídica",null,{"$f":"+IF(H9>Dadesbasiques[[#This Row],[Columna1]],\"ALERTA: La quantia de la subvenció atorgada no pot superar el 80% de la despesa total del projecte a subvencionar\", \" \")","v":" "},null,null,"  "]
["NIF de la persona jurídica",null,{"$f":"+IF(H10>Dadesbasiques[[#This Row],[Columna1]],\"ALERTA: La quantia de la subvenció atorgada no pot superar el 80% de la despesa total del projecte a subvencionar\", \" \")","v":" "}]
["Nombre del proyecto subvencionable",null,{"$f":"+IF(H11>Dadesbasiques[[#This Row],[Columna1]],\"ALERTA: La quantia de la subvenció atorgada no pot superar el 80% de la despesa total del projecte a subvencionar\", \" \")","v":" "},null,null,null,"DATOS BÁSICOS DEL PROYECTO REFORMULADO"]
["Importe total del proyecto subvencionable",null,null,null,null,null,"Importe total del proyecto REFORMULADO"]
["Importe imputable a la subvención municipal",null,null,null,null,null,"Importe imputable a la subvención OTORGADA"]
["Importe de la aportación / Cofinanciación de la organización",{"$f":"+B12-B13","v":0},null,null,null,null,"Importe de la aportación / Cofinanciación de la organización",{"$f":"H12-H13","v":0}]
["% del importe solicitado respecto al total del proyecto",{"$f":"B13/B12","v":{"$error":"#DIV/0!"}},null,null,null,null,"% del importe solicitado respecto al total del proyecto",{"$f":"H13/H12","v":{"$error":"#DIV/0!"}},{"$f":"+IF(H15>Dadesbasiques[[#This Row],[Columna1]],\"*Este porcentaje debe ser igual o menor al porcentaje subvencionado inicialmente.\",\" \")","v":{"$error":"#DIV/0!"}}]
["Data inici del projecte subvencionat (dd/mm/aaaa)",null,{"$f":"+IF(H16>Dadesbasiques[[#This Row],[Columna1]],\"ALERTA: La quantia de la subvenció atorgada no pot superar el 80% de la despesa total del projecte a subvencionar\", \" \")","v":" "}]
["Data fi del projecte subvencionat (dd/mm/aaaa)",null,{"$f":"+IF(H17>Dadesbasiques[[#This Row],[Columna1]],\"ALERTA: La quantia de la subvenció atorgada no pot superar el 80% de la despesa total del projecte a subvencionar\", \" \")","v":" "}]
[]
["PREVISIÓ DE DESPESES DEL PROJECTE SUBVENCIONABLE INICIAL",null,null,null,null,null,"PREVISIÓN DE GASTOS DEL PROJECTO REFORMULADO"]
[]
["PREVISIÓN DE GASTOS DEL PROYECTO SUBVENCIONABLE PARA SUBMODALIDAD Bc"]
["Partidas","Importe imputable a la subvención municipal","Importe de la aportación / Cofinanciación de la organización","Importe total del proyecto",null,null,"Importe imputable a la subvención municipal municipal","Importe de la aportación / Cofinanciación de la organización","Importe total del proyecto"]
["D1. Retribuciones y seguridad social (régimen general o régimen de autónomos) del personal propio vinculado/a al proyecto (máximo 25% subvención)",{"$f":"SUM(B24:B27)","v":0},{"$f":"SUM(C24:C27)","v":0},{"$f":"SUM(DespesesProjecte[[#This Row],[Importe imputable a la subvención municipal]],DespesesProjecte[[#This Row],[Importe de la aportación / Cofinanciación de la organización]])","v":0},null,null,{"$f":"SUM(G24:G27)","v":0},{"$f":"SUM(H24:H27)","v":0},{"$f":"+G23+H23","v":0}]
[null,null,null,{"$f":"SUM(DespesesProjecte[[#This Row],[Importe imputable a la subvención municipal]],DespesesProjecte[[#This Row],[Importe de la aportación / Cofinanciación de la organización]])","v":0},null,null,null,null,{"$f":"+G24+H24","v":0}]
[null,null,null,{"$f":"SUM(DespesesProjecte[[#This Row],[Importe imputable a la subvención municipal]],DespesesProjecte[[#This Row],[Importe de la aportación / Cofinanciación de la organización]])","v":0},null,null,null,null,0]
[null,null,null,{"$f":"SUM(DespesesProjecte[[#This Row],[Importe imputable a la subvención municipal]],DespesesProjecte[[#This Row],[Importe de la aportación / Cofinanciación de la organización]])","v":0},null,null,null,null,0]
[null,null,null,{"$f":"SUM(DespesesProjecte[[#This Row],[Importe imputable a la subvención municipal]],DespesesProjecte[[#This Row],[Importe de la aportación / Cofinanciación de la organización]])","v":0},null,null,null,null,0]
["TOTAL DE GASTOS DE PERSONAL\nMáximo 25% del importe imputable a la subvención municipal si se trata de personal propio asignado al proyecto subvencionado",{"$f":"SUM(B23)","v":0},{"$f":"SUM(C23)","v":0},{"$f":"SUM(D23)","v":0},null,null,{"$f":"SUM(G23)","v":0},{"$f":"SUM(H23)","v":0},{"$f":"SUM(I23)","v":0},{"$f":"+IF(G28>H13*0.25,\"ALERTA: Máximo 25% del importe imputable a la subvención municipal\", \" \")","v":" "}]
["D2. Trabajos realizados por profesionales y empresas externas directamente vinculadas al proyecto",{"$f":"SUM(B30:B32)","v":0},{"$f":"SUM(C30:C32)","v":0},{"$f":"SUM(DespesesProjecte[[#This Row],[Importe imputable a la subvención municipal]],DespesesProjecte[[#This Row],[Importe de la aportación / Cofinanciación de la organización]])","v":0},null,null,{"$f":"SUM(G30:G32)","v":0},{"$f":"SUM(H30:H32)","v":0},{"$f":"+G29+H29","v":0}]
[null,null,null,{"$f":"SUM(DespesesProjecte[[#This Row],[Importe imputable a la subvención municipal]],DespesesProjecte[[#This Row],[Importe de la aportación / Cofinanciación de la organización]])","v":0},null,null,null,null,{"$f":"+G30+H30","v":0}]
[null,null,null,{"$f":"SUM(DespesesProjecte[[#This Row],[Importe imputable a la subvención municipal]],DespesesProjecte[[#This Row],[Importe de la aportación / Cofinanciación de la organización]])","v":0},null,null,null,null,0]
[null,null,null,{"$f":"SUM(DespesesProjecte[[#This Row],[Importe imputable a la subvención municipal]],DespesesProjecte[[#This Row],[Importe de la aportación / Cofinanciación de la organización]])","v":0},null,null,null,null,0]
["D3. Alquiler de bienes muebles directamente vinculados al proyecto",{"$f":"SUM(B34:B36)","v":0},{"$f":"SUM(C34:C36)","v":0},{"$f":"SUM(DespesesProjecte[[#This Row],[Importe imputable a la subvención municipal]],DespesesProjecte[[#This Row],[Importe de la aportación / Cofinanciación de la organización]])","v":0},null,null,{"$f":"SUM(G34:G36)","v":0},{"$f":"SUM(H34:H36)","v":0},0]
[null,null,null,{"$f":"SUM(DespesesProjecte[[#This Row],[Importe imputable a la subvención municipal]],DespesesProjecte[[#This Row],[Importe de la aportación / Cofinanciación de la organización]])","v":0},null,null,null,null,0]
[null,null,null,{"$f":"SUM(DespesesProjecte[[#This Row],[Importe imputable a la subvención municipal]],DespesesProjecte[[#This Row],[Importe de la aportación / Cofinanciación de la organización]])","v":0},null,null,null,null,0]
[null,null,null,{"$f":"SUM(DespesesProjecte[[#This Row],[Importe imputable a la subvención municipal]],DespesesProjecte[[#This Row],[Importe de la aportación / Cofinanciación de la organización]])","v":0},null,null,null,null,0]
["D4. Adquisición de materiales y bienes consumibles íntegramente imputables al proyecto ",{"$f":"SUM(B38:B40)","v":0},{"$f":"SUM(C38:C40)","v":0},{"$f":"SUM(DespesesProjecte[[#This Row],[Importe imputable a la subvención municipal]],DespesesProjecte[[#This Row],[Importe de la aportación / Cofinanciación de la organización]])","v":0},null,null,{"$f":"SUM(G38:G40)","v":0},{"$f":"SUM(H38:H40)","v":0},0]
[null,null,null,{"$f":"SUM(DespesesProjecte[[#This Row],[Importe imputable a la subvención municipal]],DespesesProjecte[[#This Row],[Importe de la aportación / Cofinanciación de la organización]])","v":0},null,null,null,null,0]
[null,null,null,{"$f":"SUM(DespesesProjecte[[#This Row],[Importe imputable a la subvención municipal]],DespesesProjecte[[#This Row],[Importe de la aportación / Cofinanciación de la organización]])","v":0},null,null,null,null,0]
[null,null,null,{"$f":"SUM(DespesesProjecte[[#This Row],[Importe imputable a la subvención municipal]],DespesesProjecte[[#This Row],[Importe de la aportación / Cofinanciación de la organización]])","v":0},null,null,null,null,0]
["D5. Transporte – mensajería imputables al proyecto",{"$f":"SUM(B42:B44)","v":0},{"$f":"SUM(C42:C44)","v":0},{"$f":"DespesesProjecte[[#This Row],[Importe imputable a la subvención municipal]]+DespesesProjecte[[#This Row],[Importe de la aportación / Cofinanciación de la organización]]","v":0},null,null,{"$f":"SUM(G42:G44)","v":0},{"$f":"SUM(H42:H44)","v":0},0]
[null,null,null,{"$f":"SUM(DespesesProjecte[[#This Row],[Importe imputable a la subvención municipal]],DespesesProjecte[[#This Row],[Importe de la aportación / Cofinanciación de la organización]])","v":0},null,null,null,null,0]
[null,null,null,{"$f":"SUM(DespesesProjecte[[#This Row],[Importe imputable a la subvención municipal]],DespesesProjecte[[#This Row],[Importe de la aportación / Cofinanciación de la organización]])","v":0},null,null,null,null,0]
[null,null,null,{"$f":"SUM(DespesesProjecte[[#This Row],[Importe imputable a la subvención municipal]],DespesesProjecte[[#This Row],[Importe de la aportación / Cofinanciación de la organización]])","v":0},null,null,null,null,0]
["D6.  Publicidad y propaganda de las actividades directamente vinculadas al proyecto ",{"$f":"SUM(B46:B48)","v":0},{"$f":"SUM(C46:C48)","v":0},{"$f":"SUM(DespesesProjecte[[#This Row],[Importe imputable a la subvención municipal]],DespesesProjecte[[#This Row],[Importe de la aportación / Cofinanciación de la organización]])","v":0},null,null,{"$f":"SUM(G46:G48)","v":0},{"$f":"SUM(H46:H48)","v":0},0]
[null,null,null,{"$f":"SUM(DespesesProjecte[[#This Row],[Importe imputable a la subvención municipal]],DespesesProjecte[[#This Row],[Importe de la aportación / Cofinanciación de la organización]])","v":0},null,null,null,null,0]
[null,null,null,{"$f":"SUM(DespesesProjecte[[#This Row],[Importe imputable a la subvención municipal]],DespesesProjecte[[#This Row],[Importe de la aportación / Cofinanciación de la organización]])","v":0},null,null,null,null,0]
[null,null,null,{"$f":"SUM(DespesesProjecte[[#This Row],[Importe imputable a la subvención municipal]],DespesesProjecte[[#This Row],[Importe de la aportación / Cofinanciación de la organización]])","v":0},null,null,null,null,0]
["D7. Alojamiento y dietas, del personal contratante y voluntario, vinculados al proyecto",{"$f":"SUM(B50:B52)","v":0},{"$f":"SUM(C50:C52)","v":0},{"$f":"SUM(DespesesProjecte[[#This Row],[Importe imputable a la subvención municipal]],DespesesProjecte[[#This Row],[Importe de la aportación / Cofinanciación de la organización]])","v":0},null,null,{"$f":"SUM(G50:G52)","v":0},{"$f":"SUM(H50:H52)","v":0},0]
[null,null,null,{"$f":"SUM(DespesesProjecte[[#This Row],[Importe imputable a la subvención municipal]],DespesesProjecte[[#This Row],[Importe de la aportación / Cofinanciación de la organización]])","v":0},null,null,null,null,0]
[null,null,null,{"$f":"SUM(DespesesProjecte[[#This Row],[Importe imputable a la subvención municipal]],DespesesProjecte[[#This Row],[Importe de la aportación / Cofinanciación de la organización]])","v":0},null,null,null,null,0]
[null,null,null,{"$f":"SUM(DespesesProjecte[[#This Row],[Importe imputable a la subvención municipal]],DespesesProjecte[[#This Row],[Importe de la aportación / Cofinanciación de la organización]])","v":0},null,null,null,null,0]
["D8. Ayudas al transporte para los/las participantes de los proyectos en caso de que sea necesario de manera justificada",{"$f":"SUM(B54:B56)","v":0},{"$f":"SUM(C54:C56)","v":0},{"$f":"SUM(DespesesProjecte[[#This Row],[Importe imputable a la subvención municipal]],DespesesProjecte[[#This Row],[Importe de la aportación / Cofinanciación de la organización]])","v":0},null,null,{"$f":"SUM(G54:G56)","v":0},{"$f":"SUM(H54:H56)","v":0},0]
[null,null,null,{"$f":"SUM(DespesesProjecte[[#This Row],[Importe imputable a la subvención municipal]],DespesesProjecte[[#This Row],[Importe de la aportación / Cofinanciación de la organización]])","v":0},null,null,null,null,0]
[null,null,null,{"$f":"SUM(DespesesProjecte[[#This Row],[Importe imputable a la subvención municipal]],DespesesProjecte[[#This Row],[Importe de la aportación / Cofinanciación de la organización]])","v":0},null,null,null,null,0]
[null,null,null,{"$f":"SUM(DespesesProjecte[[#This Row],[Importe imputable a la subvención municipal]],DespesesProjecte[[#This Row],[Importe de la aportación / Cofinanciación de la organización]])","v":0},null,null,null,null,0]
["D9. Viajes y desplazamientos imputables a las actividades del proyecto",{"$f":"SUM(B58:B60)","v":0},{"$f":"SUM(C58:C60)","v":0},{"$f":"DespesesProjecte[[#This Row],[Importe imputable a la subvención municipal]]+DespesesProjecte[[#This Row],[Importe de la aportación / Cofinanciación de la organización]]","v":0},null,null,{"$f":"SUM(G58:G60)","v":0},{"$f":"SUM(H58:H60)","v":0},0]
[null,null,null,{"$f":"SUM(DespesesProjecte[[#This Row],[Importe imputable a la subvención municipal]],DespesesProjecte[[#This Row],[Importe de la aportación / Cofinanciación de la organización]])","v":0},null,null,null,null,0]
[null,null,null,{"$f":"SUM(DespesesProjecte[[#This Row],[Importe imputable a la subvención municipal]],DespesesProjecte[[#This Row],[Importe de la aportación / Cofinanciación de la organización]])","v":0},null,null,null,null,0]
[null,null,null,{"$f":"SUM(DespesesProjecte[[#This Row],[Importe imputable a la subvención municipal]],DespesesProjecte[[#This Row],[Importe de la aportación / Cofinanciación de la organización]])","v":0},null,null,null,null,0]
["D10. Tributos, cuando sean abonados directamente por la persona jurídica o física beneficiaria",{"$f":"SUM(B62:B64)","v":0},{"$f":"SUM(C62:C64)","v":0},{"$f":"DespesesProjecte[[#This Row],[Importe imputable a la subvención municipal]]+DespesesProjecte[[#This Row],[Importe de la aportación / Cofinanciación de la organización]]","v":0},null,null,{"$f":"SUM(G62:G64)","v":0},{"$f":"SUM(H62:H64)","v":0},0]
[null,null,null,{"$f":"SUM(DespesesProjecte[[#This Row],[Importe imputable a la subvención municipal]],DespesesProjecte[[#This Row],[Importe de la aportación / Cofinanciación de la organización]])","v":0},null,null,null,null,0]
[null,null,null,{"$f":"SUM(DespesesProjecte[[#This Row],[Importe imputable a la subvención municipal]],DespesesProjecte[[#This Row],[Importe de la aportación / Cofinanciación de la organización]])","v":0},null,null,null,null,0]
[null,null,null,{"$f":"SUM(DespesesProjecte[[#This Row],[Importe imputable a la subvención municipal]],DespesesProjecte[[#This Row],[Importe de la aportación / Cofinanciación de la organización]])","v":0},null,null,null,null,0]
["D11. Gastos del informe de auditoría (máximo 1.500€ subvención)",{"$f":"SUM(B66:B68)","v":0},{"$f":"SUM(C66:C72)","v":0},{"$f":"DespesesProjecte[[#This Row],[Importe imputable a la subvención municipal]]+DespesesProjecte[[#This Row],[Importe de la aportación / Cofinanciación de la organización]]","v":0},null,null,{"$f":"SUM(G66:G68)","v":0},{"$f":"SUM(H66:H72)","v":0},0,{"$f":"+IF(G65>1500,\"ALERTA: Máximo 1.500€ del importe imputable a la subvención municipal\", \" \")","v":" "}]
[null,null,null,{"$f":"SUM(DespesesProjecte[[#This Row],[Importe imputable a la subvención municipal]],DespesesProjecte[[#This Row],[Importe de la aportación / Cofinanciación de la organización]])","v":0},null,null,null,null,0]
[null,null,null,{"$f":"SUM(DespesesProjecte[[#This Row],[Importe imputable a la subvención municipal]],DespesesProjecte[[#This Row],[Importe de la aportación / Cofinanciación de la organización]])","v":0},null,null,null,null,0]
[null,null,null,{"$f":"SUM(DespesesProjecte[[#This Row],[Importe imputable a la subvención municipal]],DespesesProjecte[[#This Row],[Importe de la aportación / Cofinanciación de la organización]])","v":0},null,null,null,null,0]
["D12. Otros gastos que de manera justificada y por la tipología del proyecto puedan imputarse directamente al proyecto",{"$f":"SUM(B70:B72)","v":0},{"$f":"SUM(C70:C72)","v":0},{"$f":"DespesesProjecte[[#This Row],[Importe imputable a la subvención municipal]]+DespesesProjecte[[#This Row],[Importe de la aportación / Cofinanciación de la organización]]","v":0},null,null,{"$f":"SUM(G70:G72)","v":0},{"$f":"SUM(H70:H72)","v":0},0]
[null,null,null,{"$f":"SUM(DespesesProjecte[[#This Row],[Importe imputable a la subvención municipal]],DespesesProjecte[[#This Row],[Importe de la aportación / Cofinanciación de la organización]])","v":0},null,null,null,null,0]
[null,null,null,{"$f":"SUM(DespesesProjecte[[#This Row],[Importe imputable a la subvención municipal]],DespesesProjecte[[#This Row],[Importe de la aportación / Cofinanciación de la organización]])","v":0},null,null,null,null,0]
[null,null,null,{"$f":"SUM(DespesesProjecte[[#This Row],[Importe imputable a la subvención municipal]],DespesesProjecte[[#This Row],[Importe de la aportación / Cofinanciación de la organización]])","v":0},null,null,null,null,0]
["TOTAL  DE OTROS GASTOS DIRECTOS",{"$f":"B29+B33+B37+B41+B45+B49+B53+B57+B61+B65+B69","v":0},{"$f":"C29+C33+C37+C41+C45+C49+C53+C57+C61+C65+C69","v":0},{"$f":"D29+D33+D37+D41+D45+D49+D53+D57+D61+D65+D69","v":0},null,null,{"$f":"G29+G33+G37+G41+G45+G49+G53+G57+G61+G65+G69","v":0},{"$f":"H29+H33+H37+H41+H45+H49+H53+H57+H61+H65+H69","v":0},{"$f":"I29+I33+I37+I41+I45+I49+I53+I57+I61+I65+I69","v":0}]
["TOTAL GASTOS DIRECTOS  (aquellos que se identifican directamente con el proyecto subvencionable)",{"$f":"B28+B73","v":0},{"$f":"C28+C73","v":0},{"$f":"D28+D73","v":0},null,null,{"$f":"G28+G73","v":0},{"$f":"H28+H73","v":0},{"$f":"I28+I73","v":0}]
["I1. Personal de soporte al proyecto (nóminas y seguridad social)",{"$f":"SUM(B76:B78)","v":0},{"$f":"SUM(C76:C78)","v":0},{"$f":"SUM(DespesesProjecte[[#This Row],[Importe imputable a la subvención municipal]],DespesesProjecte[[#This Row],[Importe de la aportación / Cofinanciación de la organización]])","v":0},null,null,{"$f":"SUM(G76:G78)","v":0},{"$f":"SUM(H76:H78)","v":0},{"$f":"+G75+H75","v":0}]
[null,null,null,{"$f":"SUM(DespesesProjecte[[#This Row],[Importe imputable a la subvención municipal]],DespesesProjecte[[#This Row],[Importe de la aportación / Cofinanciación de la organización]])","v":0},null,null,null,null,{"$f":"+G76+H76","v":0}]
[null,null,null,{"$f":"SUM(DespesesProjecte[[#This Row],[Importe imputable a la subvención municipal]],DespesesProjecte[[#This Row],[Importe de la aportación / Cofinanciación de la organización]])","v":0},null,null,null,null,0]
[null,null,null,{"$f":"SUM(DespesesProjecte[[#This Row],[Importe imputable a la subvención municipal]],DespesesProjecte[[#This Row],[Importe de la aportación / Cofinanciación de la organización]])","v":0},null,null,null,null,0]
["I2.  Seguros",{"$f":"SUM(B80:B82)","v":0},{"$f":"SUM(C80:C82)","v":0},{"$f":"SUM(DespesesProjecte[[#This Row],[Importe imputable a la subvención municipal]],DespesesProjecte[[#This Row],[Importe de la aportación / Cofinanciación de la organización]])","v":0},null,null,{"$f":"SUM(G80:G82)","v":0},{"$f":"SUM(H80:H82)","v":0},0]
[null,null,null,{"$f":"SUM(DespesesProjecte[[#This Row],[Importe imputable a la subvención municipal]],DespesesProjecte[[#This Row],[Importe de la aportación / Cofinanciación de la organización]])","v":0},null,null,null,null,0]
[null,null,null,{"$f":"SUM(DespesesProjecte[[#This Row],[Importe imputable a la subvención municipal]],DespesesProjecte[[#This Row],[Importe de la aportación / Cofinanciación de la organización]])","v":0},null,null,null,null,0]
[null,null,null,{"$f":"SUM(DespesesProjecte[[#This Row],[Importe imputable a la subvención municipal]],DespesesProjecte[[#This Row],[Importe de la aportación / Cofinanciación de la organización]])","v":0},null,null,null,null,0]
["I3.  Amortización",{"$f":"SUM(B84:B86)","v":0},{"$f":"SUM(C84:C86)","v":0},{"$f":"SUM(DespesesProjecte[[#This Row],[Importe imputable a la subvención municipal]],DespesesProjecte[[#This Row],[Importe de la aportación / Cofinanciación de la organización]])","v":0},null,null,{"$f":"SUM(G84:G86)","v":0},{"$f":"SUM(H84:H86)","v":0},0]
[null,null,null,{"$f":"SUM(DespesesProjecte[[#This Row],[Importe imputable a la subvención municipal]],DespesesProjecte[[#This Row],[Importe de la aportación / Cofinanciación de la organización]])","v":0},null,null,null,null,0]
[null,null,null,{"$f":"SUM(DespesesProjecte[[#This Row],[Importe imputable a la subvención municipal]],DespesesProjecte[[#This Row],[Importe de la aportación / Cofinanciación de la organización]])","v":0},null,null,null,null,0]
[null,null,null,{"$f":"SUM(DespesesProjecte[[#This Row],[Importe imputable a la subvención municipal]],DespesesProjecte[[#This Row],[Importe de la aportación / Cofinanciación de la organización]])","v":0},null,null,null,null,0]
["I4.  Alquiler de bienes inmuebles",{"$f":"SUM(B88:B90)","v":0},{"$f":"SUM(C88:C90)","v":0},{"$f":"SUM(DespesesProjecte[[#This Row],[Importe imputable a la subvención municipal]],DespesesProjecte[[#This Row],[Importe de la aportación / Cofinanciación de la organización]])","v":0},null,null,{"$f":"SUM(G88:G90)","v":0},{"$f":"SUM(H88:H90)","v":0},0]
[null,null,null,{"$f":"SUM(DespesesProjecte[[#This Row],[Importe imputable a la subvención municipal]],DespesesProjecte[[#This Row],[Importe de la aportación / Cofinanciación de la organización]])","v":0},null,null,null,null,0]
[null,null,null,{"$f":"SUM(DespesesProjecte[[#This Row],[Importe imputable a la subvención municipal]],DespesesProjecte[[#This Row],[Importe de la aportación / Cofinanciación de la organización]])","v":0},null,null,null,null,0]
[null,null,null,{"$f":"SUM(DespesesProjecte[[#This Row],[Importe imputable a la subvención municipal]],DespesesProjecte[[#This Row],[Importe de la aportación / Cofinanciación de la organización]])","v":0},null,null,null,null,0]
["I5.  Adquisición de materiales y bienes consumibles parcialmente imputables al proyecto ",{"$f":"SUM(B92:B94)","v":0},{"$f":"SUM(C92:C94)","v":0},{"$f":"SUM(DespesesProjecte[[#This Row],[Importe imputable a la subvención municipal]],DespesesProjecte[[#This Row],[Importe de la aportación / Cofinanciación de la organización]])","v":0},null,null,{"$f":"SUM(G92:G94)","v":0},{"$f":"SUM(H92:H94)","v":0},0]
[null,null,null,{"$f":"SUM(DespesesProjecte[[#This Row],[Importe imputable a la subvención municipal]],DespesesProjecte[[#This Row],[Importe de la aportación / Cofinanciación de la organización]])","v":0},null,null,null,null,0]
[null,null,null,{"$f":"SUM(DespesesProjecte[[#This Row],[Importe imputable a la subvención municipal]],DespesesProjecte[[#This Row],[Importe de la aportación / Cofinanciación de la organización]])","v":0},null,null,null,null,0]
[null,null,null,{"$f":"SUM(DespesesProjecte[[#This Row],[Importe imputable a la subvención municipal]],DespesesProjecte[[#This Row],[Importe de la aportación / Cofinanciación de la organización]])","v":0},null,null,null,null,0]
["I6.  Mantenimiento de edificios y/o instalaciones",{"$f":"SUM(B96:B98)","v":0},{"$f":"SUM(C96:C98)","v":0},{"$f":"SUM(DespesesProjecte[[#This Row],[Importe imputable a la subvención municipal]],DespesesProjecte[[#This Row],[Importe de la aportación / Cofinanciación de la organización]])","v":0},null,null,{"$f":"SUM(G96:G98)","v":0},{"$f":"SUM(H96:H98)","v":0},0]
[null,null,null,{"$f":"SUM(DespesesProjecte[[#This Row],[Importe imputable a la subvención municipal]],DespesesProjecte[[#This Row],[Importe de la aportación / Cofinanciación de la organización]])","v":0},null,null,null,null,0]
[null,null,null,{"$f":"SUM(DespesesProjecte[[#This Row],[Importe imputable a la subvención municipal]],DespesesProjecte[[#This Row],[Importe de la aportación / Cofinanciación de la organización]])","v":0},null,null,null,null,0]
[null,null,null,{"$f":"SUM(DespesesProjecte[[#This Row],[Importe imputable a la subvención municipal]],DespesesProjecte[[#This Row],[Importe de la aportación / Cofinanciación de la organización]])","v":0},null,null,null,null,0]
["I7.  Comunicaciones (teléfono, correos, conexión a internet)",{"$f":"SUM(B100:B102)","v":0},{"$f":"SUM(C100:C102)","v":0},{"$f":"SUM(DespesesProjecte[[#This Row],[Importe imputable a la subvención municipal]],DespesesProjecte[[#This Row],[Importe de la aportación / Cofinanciación de la organización]])","v":0},null,null,{"$f":"SUM(G100:G102)","v":0},{"$f":"SUM(H100:H102)","v":0},0]
[null,null,null,{"$f":"SUM(DespesesProjecte[[#This Row],[Importe imputable a la subvención municipal]],DespesesProjecte[[#This Row],[Importe de la aportación / Cofinanciación de la organización]])","v":0},null,null,null,null,0]
[null,null,null,{"$f":"SUM(DespesesProjecte[[#This Row],[Importe imputable a la subvención municipal]],DespesesProjecte[[#This Row],[Importe de la aportación / Cofinanciación de la organización]])","v":0},null,null,null,null,0]
[null,null,null,{"$f":"SUM(DespesesProjecte[[#This Row],[Importe imputable a la subvención municipal]],DespesesProjecte[[#This Row],[Importe de la aportación / Cofinanciación de la organización]])","v":0},null,null,null,null,0]
["I8.  Gastos financieros",{"$f":"SUM(B104:B106)","v":0},{"$f":"SUM(C104:C106)","v":0},{"$f":"SUM(DespesesProjecte[[#This Row],[Importe imputable a la subvención municipal]],DespesesProjecte[[#This Row],[Importe de la aportación / Cofinanciación de la organización]])","v":0},null,null,{"$f":"SUM(G104:G106)","v":0},{"$f":"SUM(H104:H106)","v":0},0]
[null,null,null,{"$f":"SUM(DespesesProjecte[[#This Row],[Importe imputable a la subvención municipal]],DespesesProjecte[[#This Row],[Importe de la aportación / Cofinanciación de la organización]])","v":0},null,null,null,null,0]
[null,null,null,{"$f":"SUM(DespesesProjecte[[#This Row],[Importe imputable a la subvención municipal]],DespesesProjecte[[#This Row],[Importe de la aportación / Cofinanciación de la organización]])","v":0},null,null,null,null,0]
[null,null,null,{"$f":"SUM(DespesesProjecte[[#This Row],[Importe imputable a la subvención municipal]],DespesesProjecte[[#This Row],[Importe de la aportación / Cofinanciación de la organización]])","v":0},null,null,null,null,0]
["I9. Suministros ",{"$f":"SUM(B108:B110)","v":0},{"$f":"SUM(C108:C110)","v":0},{"$f":"SUM(DespesesProjecte[[#This Row],[Importe imputable a la subvención municipal]],DespesesProjecte[[#This Row],[Importe de la aportación / Cofinanciación de la organización]])","v":0},null,null,{"$f":"SUM(G108:G110)","v":0},{"$f":"SUM(H108:H110)","v":0},0]
[null,null,null,{"$f":"SUM(DespesesProjecte[[#This Row],[Importe imputable a la subvención municipal]],DespesesProjecte[[#This Row],[Importe de la aportación / Cofinanciación de la organización]])","v":0},null,null,null,null,0]
[null,null,null,{"$f":"SUM(DespesesProjecte[[#This Row],[Importe imputable a la subvención municipal]],DespesesProjecte[[#This Row],[Importe de la aportación / Cofinanciación de la organización]])","v":0},null,null,null,null,0]
[null,null,null,{"$f":"SUM(DespesesProjecte[[#This Row],[Importe imputable a la subvención municipal]],DespesesProjecte[[#This Row],[Importe de la aportación / Cofinanciación de la organización]])","v":0},null,null,null,null,0]
["I10. Trabajo realizado por otras empresas, parcialmente imputables al proyecto (limpieza, seguridad...)",{"$f":"SUM(B112:B114)","v":0},{"$f":"SUM(C112:C114)","v":0},{"$f":"SUM(DespesesProjecte[[#This Row],[Importe imputable a la subvención municipal]],DespesesProjecte[[#This Row],[Importe de la aportación / Cofinanciación de la organización]])","v":0},null,null,{"$f":"SUM(G112:G114)","v":0},{"$f":"SUM(H112:H114)","v":0},0]
[null,null,null,{"$f":"SUM(DespesesProjecte[[#This Row],[Importe imputable a la subvención municipal]],DespesesProjecte[[#This Row],[Importe de la aportación / Cofinanciación de la organización]])","v":0},null,null,null,null,0]
[null,null,null,{"$f":"SUM(DespesesProjecte[[#This Row],[Importe imputable a la subvención municipal]],DespesesProjecte[[#This Row],[Importe de la aportación / Cofinanciación de la organización]])","v":0},null,null,null,null,0]
[null,null,null,{"$f":"SUM(DespesesProjecte[[#This Row],[Importe imputable a la subvención municipal]],DespesesProjecte[[#This Row],[Importe de la aportación / Cofinanciación de la organización]])","v":0},null,null,null,null,0]
["TOTAL GASTOS INDIRECTOS (se podrán asignar al proyecto subvencionable utilizando un porcentaje de asignación) - Máximo 10 % del importe imputable a la subvención municipal",{"$f":"SUM(B75,B79,B83,B87,B91,B95,B99,B103,B107,B111)","v":0},{"$f":"SUM(C75,C79,C83,C87,C91,C95,C99,C103,C107,C111)","v":0},{"$f":"SUM(D75,D79,D83,D87,D91,D95,D99,D103,D107,D111)","v":0},null,null,{"$f":"SUM(G75,G79,G83,G87,G91,G95,G99,G103,G107,G111)","v":0},{"$f":"SUM(H75,H79,H83,H87,H91,H95,H99,H103,H107,H111)","v":0},{"$f":"SUM(I75,I79,I83,I87,I91,I95,I99,I103,I107,I111)","v":0},{"$f":"+IF(G115>H13*0.1,\"ALERTA: Máximo 10% del importe imputable a la subvención municipal\", \" \")","v":" "}]
["TOTAL DE GASTOS PREVISTOS",{"$f":"SUM(B115,B74)","v":0},{"$f":"SUM(C115,C74)","v":0},{"$f":"SUM(D115,D74)","v":0},null,null,{"$f":"SUM(G115,G74)","v":0},{"$f":"SUM(H115,H74)","v":0},{"$f":"SUM(I115,I74)","v":0}]
[]
[]
[]
[]
[]
[]
[]
[]
[]
[]
["Modalidad Bc. Proyectos y acciones de intercooperación significativas para el desarrollo de los Proyectos de Ciudad y retos transversales de la #ESSBCN2030"]
["1. La cuantía de la subvención otorgada no superará el 80% del gasto total del proyecto a subvencionar."]
["2. El importe máximo de subvención para esta submodalidad del ámbito temático de Reactivación: Intercooperación (Bc) es 25.000€.\n"]
["3. En el caso que la solicitud presentada sobrepase el importe máximo, se considerará como importe solicitado el máximo de lo establecido en la convocatoria."]
["4. En esta modalidad se aceptará la imputación de gastos de personal propio y directamente vinculado al proyecto de las organizaciones participantes del acuerdo de colaboración."]
["5. Se limita con un máximo del 25% el importe de la subvención para gastos de personal propio asignado al proyecto subvencionado (retribuciones y seguridad social- régimen general o autónomos-)."]
["6. En el caso de alquileres de inmuebles, les gastos de alquiler se imputarán a los gastos indirectos con el límite establecido por éstos."]
["7. Para las subvenciones otorgadas por importe igual o superior a 20.000 € es necesario un informe de auditoría para la justificación. El importe de este informe se considera gasto subvencionable, con un límite máximo de 1.500€."]
["8. Son imputables en esta modalidad los gastos indirectos, detallados en el apartado 13.3. de las bases reguladoras; con un máximo del 10% del importe de la subvención.\nEl carácter subvencionable del gasto de amortización estará sujeto a las condiciones siguientes:\n> Que las subvenciones no hayan contribuido a la compra de los bienes.\n> Que la amortización se calcule de conformidad con las normas de contabilidad generalmente aceptadas.\n> Que el coste se refiera al período subvencionable.\n\n"]
["9. No se admitirá ninguna propuesta en esta submodalidad que no presente el acuerdo de colaboración por personas jurídicas por el proyecto presentado para recibir esta subvención."]
["10. Cuando se deba hacer gastos de más de 12.000 €, sin IVA, en el caso de prestaciones de servicios o entrega de bienes y para aquellos gastos de más de 30.000 €,  sin IVA, en el caso de ejecución de obras, se deberán de incorporar tres presupuestos solicitados y argumentar el motivo de la adjudicación en el caso de no ser la propuesta más ventajosa económicamente."]
["11. Los proyectos de esta modalidad tendrán que entregar a su finalización un producto comunicativo, de acuerdo con el contenido establecido en la convocatoria de la subvención."]
["12. No serán elegibles facturas de empresas emitidas entre las organizaciones participantes del acuerdo de colaboración."]
["13. En ningún caso se considerarán gastos subvencionables:\n> Los impuestos indirectos cuando sean susceptibles de recuperación o compensación.\n> Los gastos de inversión, incluidas las adquisiciones de bienes muebles.\n> Los gastos realizados con fecha anterior al inicio del proyecto y fecha posterior a la finalización del proyecto.\n> Otros gastos que se indiquen en la convocatoria."]
["14. La retribución de las personas contratadas en el marco del proyecto subvencionado no puede ser inferior al Salario Mínimo Interprofesional (SMI), ni a la estipulada al correspondiente convenio o marco normativo de referencia (punto 7 de las bases 2021: requisitos de los proyectos)."]
["15. Los materiales producidos de difusión, estudios, informes o materiales didácticos utilizados, etc. en el caso de tratarse de gasto elegible de la subvención, deberán tener licencia Creative Commons -Compartir Igual- (share a like) y no podrá tener la condición –Sin Obras Derivadas- (no derivate Works)."]
["16. Los proyectos subvencionados deben fomentar actividades de interés público o social, las cuales deben ser gratuitas para las personas participantes o en ningún caso el precio debe suponer un obstáculo para su participación, buscando otras formas de acceso para personas con dificultades económicas. En el caso que haya algún tipo de lucro, deberán revertir en las propias actividades subvencionadas."]
["17. El Ayuntamiento de Barcelona y sus entidades municipales en ningún caso subvencionarán el mismo proyecto, ejecutado durante el mismo periodo, por ningún otro procedimiento de concesión que no sea el regulado por las bases reguladoras."]
["18. El/la beneficiario/a no podrá alterar en ningún caso el destino de las subvenciones concedidas."]
["19. La organización designada como representante de la agrupación será plenamente responsable del proyecto ante el Ayuntamiento respecto al cumplimiento de las obligaciones establecidas en las bases reguladoras, sin perjuicio de la responsabilidad de las otras organizaciones socias de la agrupación, siendo de aplicación los requisitos previstos en el punto 6.1 de las bases reguladoras."]
["20. En ningún caso podrán formar parte de la agrupación las organizaciones que hayan recibido otras subvenciones para la ejecución del mismo proyecto de otras administraciones públicas."]

{"sheet":"Resumen Presupuesto","index":2,"n_rows":34,"n_cols":11,"rows_kept":34,"cut":false,"hidden":false,"merged":[[23,7,23,9],[5,9,6,9],[1,2,1,7],[3,0,3,8],[20,2,21,2],[20,3,21,3],[20,4,21,4],[5,0,6,1],[5,2,6,2],[5,3,6,3],[5,4,6,4],[5,6,6,7],[5,8,6,8],[18,6,18,7],[20,0,21,1]]}
[]
[null,null,"Resumen presupuesto Modalidad Bc"]
[]
["CONVOCATORIA 2023 DEL PROGRAMA DE SUBVENCIONES DEL AYUNTAMIENTO DE BARCELONA PARA EL FORTALECIMIENTO DE LA ECONOMÍA SOCIAL Y SOLIDARIA Y PARA LA INTERCOOPERACIÓN EN LA ESTRATEGIA #ESSBCN2030 -ENFORTIM L'ESS 2023",null,null,null,null,null,null,null,null,"MODALITAT Bc"]
[null,"GASTOS PREVISTOS",null,null,null,null,null,"INGRESOS PREVISTOS"]
["Gastos directos \n(aquellos que se identifican directamente con el proyecto)",null,"Previsión inicial coste total  ","Previsión reformulada coste total  ","Importe imputado a la subvención otorgada",null,"Ingresos previstos",null,"Previsión inicial ingreso total","Previsión reformulada ingreso total  "]
[]
["Bc","D1. - Retribuciones y seguridad social (régimen general o régimen de autónomos) del personal propio vinculado/da al proyecto de nueva contratación (máximo 25% subvención)",{"$f":"+'Reformulación Presupuesto Bc'!D23","v":0},{"$f":"+'Reformulación Presupuesto Bc'!I23","v":0},{"$f":"+'Reformulación Presupuesto Bc'!G23","v":0},{"$f":"+IF(D8<0,\"No s'admeten valors negatius\",\"\")","v":""},"A.","Subvención municipal (importe solicitado a la instancia/otorgado)"]
[null,"D2.  Trabajos realizados por profesionales y empresas externas directamente vinculadas al proyecto subvencionado",{"$f":"+'Reformulación Presupuesto Bc'!D29","v":0},{"$f":"+'Reformulación Presupuesto Bc'!I29","v":0},{"$f":"+'Reformulación Presupuesto Bc'!G29","v":0},{"$f":"+IF(D9<0,\"No s'admeten valors negatius\",\"\")","v":""},"B.","Subvenciones de otras administraciones",null,null,{"$f":"+IF(J9<0,\"No s'admeten valors negatius\",\"\")","v":""}]
[null,"D3. Alquiler de bienes muebles/ inmuebles directamente vinculados al proyecto subvencionable (máximo 25% subvención en caso de inmuebles para un nuevo espacio)",{"$f":"+'Reformulación Presupuesto Bc'!D33","v":0},{"$f":"+'Reformulación Presupuesto Bc'!I33","v":0},{"$f":"+'Reformulación Presupuesto Bc'!G33","v":0},{"$f":"+IF(D10<0,\"No s'admeten valors negatius\",\"\")","v":""},"C.","Subvenciones de entes privados",null,null,""]
[null,"D4. Adquisición de materiales y bienes consumibles íntegramente imputables al proyecto ",{"$f":"+'Reformulación Presupuesto Bc'!D37","v":0},{"$f":"+'Reformulación Presupuesto Bc'!I37","v":0},{"$f":"+'Reformulación Presupuesto Bc'!G37","v":0},{"$f":"+IF(D11<0,\"No s'admeten valors negatius\",\"\")","v":""},"D.","Recursos propios de la organización aplicados al proyecto"]
[null,"D5. Transporte – mensajería imputables al proyecto ",{"$f":"+'Reformulación Presupuesto Bc'!D41","v":0},{"$f":"+'Reformulación Presupuesto Bc'!I41","v":0},{"$f":"+'Reformulación Presupuesto Bc'!G41","v":0},null,"E.","Taquillaje"]
[null,"D6. Publicidad y propaganda de las actividades directamente vinculadas al proyecto",{"$f":"+'Reformulación Presupuesto Bc'!D45","v":0},{"$f":"+'Reformulación Presupuesto Bc'!I45","v":0},{"$f":"+'Reformulación Presupuesto Bc'!G45","v":0},null,"F.","Cuotas de inscripción"]
[null,"D7.  Alojamiento y dietas, del personal contratante y voluntario, vinculados al proyecto",{"$f":"+'Reformulación Presupuesto Bc'!D49","v":0},{"$f":"+'Reformulación Presupuesto Bc'!I49","v":0},{"$f":"+'Reformulación Presupuesto Bc'!G49","v":0},null,"G.","Venta de productos"]
[null,"D8. Ayudas para el transporte para los/las participantes de los proyectos en caso de que sea necesario de manera justificada",{"$f":"+'Reformulación Presupuesto Bc'!D53","v":0},{"$f":"+'Reformulación Presupuesto Bc'!I53","v":0},{"$f":"+'Reformulación Presupuesto Bc'!G53","v":0},null,"H","Publicidad y/o Esponsorización"]
[null," D9. Viajes y desplazamientos imputables a las actividades del proyecto",{"$f":"+'Reformulación Presupuesto Bc'!D57","v":0},{"$f":"+'Reformulación Presupuesto Bc'!I57","v":0},{"$f":"+'Reformulación Presupuesto Bc'!G57","v":0},null,"I.","Otros ingresos"]
[null,"D10. Tributos, cuando sean abonados directamente por la persona jurídica o física beneficiaria",{"$f":"+'Reformulación Presupuesto Bc'!D61","v":0},{"$f":"+'Reformulación Presupuesto Bc'!I61","v":0},{"$f":"+'Reformulación Presupuesto Bc'!G61","v":0},null,null,"Total Ingresos",{"$f":"SUM(I8:I16)","v":0},{"$f":"SUM(J8:J16)","v":0}]
[null,"D11.  Gastos del informe de auditoria (máx. 1.500€ subvención)",{"$f":"+'Reformulación Presupuesto Bc'!D65","v":0},{"$f":"+'Reformulación Presupuesto Bc'!I65","v":0},{"$f":"+'Reformulación Presupuesto Bc'!G65","v":0}]
[null,"D12.  Otros gastos que de manera justificada puedan imputarse directamente al proyecto subvencionable",{"$f":"+'Reformulación Presupuesto Bc'!D69","v":0},{"$f":"+'Reformulación Presupuesto Bc'!I69","v":0},{"$f":"+'Reformulación Presupuesto Bc'!G69","v":0},null,"Ingresos menos gastos",null,{"$f":"+I17-C34","v":0},{"$f":"+J17-D34","v":0}]
[null,"Total Gastos Directos   ",{"$f":"SUM(C8:C19)","v":0},{"$f":"SUM(D8:D19)","v":0},{"$f":"SUM(E8:E19)","v":0}]
["Gastos Indirectos  (se podrán asignar al proyecto utilizando un porcentaje de asignación) ",null,"Previsión inicial coste total  ","Previsión reformulada coste total  ","Importe imputado a la subvención otorgada",null,null,null,"% subvencionado inicialmente",{"$f":"I8/C34","v":{"$error":"#DIV/0!"}}]
[]
[null,"I.1 Personal de soporte al proyecto subvencionado (Nóminas y seguridad social)",{"$f":"+'Reformulación Presupuesto Bc'!D75","v":0},{"$f":"+'Reformulación Presupuesto Bc'!I75","v":0},{"$f":"+'Reformulación Presupuesto Bc'!G75","v":0},null,null,null,"% subvencionado después de reformular",{"$f":"+J8/D34","v":{"$error":"#DIV/0!"}},"*"]
[null,"I.2 Seguros",{"$f":"+'Reformulación Presupuesto Bc'!D79","v":0},{"$f":"+'Reformulación Presupuesto Bc'!I79","v":0},{"$f":"+'Reformulación Presupuesto Bc'!G79","v":0},null,null,"* Este porcentaje debe ser igual o menor al porcentaje subvencionado inicialmente."]
[null,"I.3 Amortización",{"$f":"+'Reformulación Presupuesto Bc'!D83","v":0},{"$f":"+'Reformulación Presupuesto Bc'!I83","v":0},{"$f":"+'Reformulación Presupuesto Bc'!G83","v":0},{"$f":"+IF(D25<0,\"No s'admeten valors negatius\",\"\")","v":""}]
[null,"I.4 Alquiler de bienes inmuebles",{"$f":"+'Reformulación Presupuesto Bc'!D87","v":0},{"$f":"+'Reformulación Presupuesto Bc'!I87","v":0},{"$f":"+'Reformulación Presupuesto Bc'!G87","v":0}]
[null,"I.5 Adquisición de materiales y bienes consumibles parcialmente imputables al proyecto",{"$f":"+'Reformulación Presupuesto Bc'!D91","v":0},{"$f":"+'Reformulación Presupuesto Bc'!I91","v":0},{"$f":"+'Reformulación Presupuesto Bc'!G91","v":0}]
[null,"I.6 Mantenimiento de edificios y/o instalaciones",{"$f":"+'Reformulación Presupuesto Bc'!D95","v":0},{"$f":"+'Reformulación Presupuesto Bc'!I95","v":0},{"$f":"+'Reformulación Presupuesto Bc'!G95","v":0}]
[null,"I.7 Comunicaciones (teléfono, correos, conexión a internet)",{"$f":"+'Reformulación Presupuesto Bc'!D99","v":0},{"$f":"+'Reformulación Presupuesto Bc'!I99","v":0},{"$f":"+'Reformulación Presupuesto Bc'!G99","v":0}]
[null,"I.8  Gastos financieros",{"$f":"+'Reformulación Presupuesto Bc'!D103","v":0},{"$f":"+'Reformulación Presupuesto Bc'!I103","v":0},{"$f":"+'Reformulación Presupuesto Bc'!G103","v":0}]
[null,"I.9 Suministros",{"$f":"+'Reformulación Presupuesto Bc'!D107","v":0},{"$f":"+'Reformulación Presupuesto Bc'!I107","v":0},{"$f":"+'Reformulación Presupuesto Bc'!G107","v":0}]
[null,"I.10  Trabajo realizado por otras empresas, parcialmente imputables al proyecto subvencionable (limpieza, seguridad...)",{"$f":"+'Reformulación Presupuesto Bc'!D111","v":0},{"$f":"+'Reformulación Presupuesto Bc'!I111","v":0},{"$f":"+'Reformulación Presupuesto Bc'!G111","v":0}]
[null,"Total Gastos Indirectos  (Máx. 10% subv)",{"$f":"SUM(C23:C32)","v":0},{"$f":"SUM(D23:D32)","v":0},{"$f":"SUM(E23:E32)","v":0}]
[null,"Total Gastos ",{"$f":"+C20+C33","v":0},{"$f":"+D20+D33","v":0},{"$f":"+E20+E33","v":0}]